fUST/lending_fUST_20250806
["ID","MTS","AMOUNT","RATE_DAILY","PERIOD"]
[377461425,1754416299264,-1500.0,0.00032602,28]
[377461426,1754416299273,-1500.0,0.00032602,28]
[377461427,1754416299283,-1500.0,0.00032602,28]
[377461428,1754416299293,-1500.0,0.00032602,28]
[377461429,1754416299302,-1500.0,0.00032602,28]
[377461430,1754416299312,-1500.0,0.00032602,28]
[377461431,1754416299321,-1500.0,0.00032602,28]
[377461432,1754416299330,-1500.0,0.00032602,28]
[377461433,1754416299340,-1500.0,0.00032602,28]
[377461434,1754416299350,-1500.0,0.00032602,28]
[377461435,1754416299366,-1500.0,0.00032602,28]
[377461436,1754416299376,-1500.0,0.00032602,28]
[377461437,1754416299385,-1500.0,0.00032602,28]
[377461438,1754416299395,-1500.0,0.00032602,28]
[377461439,1754416299404,-1500.0,0.00032602,28]
[377461440,1754416299413,-1500.0,0.00032602,28]
[377461441,1754416299423,-1500.0,0.00032602,28]
[377461442,1754416299434,-1500.0,0.00032602,28]
[377461443,1754416299443,-1500.0,0.00032602,28]
[377461444,1754416299453,-554.148499,0.00032602,28]
[377461445,1754416299462,-567.26,0.00032602,2]
[377461446,1754416299471,-460.0,0.00032602,2]
[377461447,1754416299481,-2164.48,0.00032602,2]
[377461448,1754416299491,-1086.69,0.00032602,2]
[377461449,1754416299501,-1437.23,0.00032602,2]
[377461450,1754416299510,-1308.5,0.00032602,2]
[377461451,1754416299519,-1242.29,0.00032602,2]
[377461452,1754416299528,-738.23,0.00032602,2]
[377461453,1754416299538,-1709.46,0.00032602,2]
[377461454,1754416299547,-6104.81,0.00032602,2]
[377461455,1754416299557,-1758.45,0.00032602,2]
[377461456,1754416299568,-902.91,0.00032602,2]
[377461457,1754416299578,-710.17,0.00032602,2]
[377461458,1754416299587,-1606.27,0.00032602,2]
[377461459,1754416299596,-819.41,0.00032602,2]
[377461460,1754416299606,-1844.87,0.00032602,2]
[377461461,1754416299618,-881.55,0.00032602,2]
[377461462,1754416299628,-558.16,0.00032602,2]
[377461463,1754416299637,-518.54,0.00032602,2]
[377461464,1754416299647,-1561.24,0.00032602,2]
[377461465,1754416299656,-3008.19,0.00032602,2]
[377461466,1754416299666,-844.75,0.00032602,2]
[377461467,1754416299675,-1209.84,0.00032602,2]
[377461468,1754416299684,-1526.12,0.00032602,2]
[377461469,1754416299693,-674.37,0.00032602,2]
[377461470,1754416299702,-734.51,0.00032602,2]
[377461471,1754416299711,-844.14,0.00032602,2]
[377461472,1754416299721,-1000.34,0.00032602,2]
[377461473,1754416299730,-2193.9,0.00032602,2]
[377461474,1754416299739,-460.0,0.00032602,2]
[377461475,1754416299748,-519.7,0.00032602,2]
[377461476,1754416299757,-748.97,0.00032602,2]
[377461477,1754416299767,-3138.65,0.00032602,2]
[377461478,1754416299776,-489.33,0.00032602,2]
[377461479,1754416299786,-460.0,0.00032602,2]
[377461480,1754416299795,-3180.74,0.00032602,2]
[377461481,1754416299805,-1930.76,0.00032602,2]
[377461482,1754416299814,-460.0,0.00032602,2]
[377461483,1754416299823,-460.0,0.00032602,2]
[377461484,1754416299832,-2230.2,0.00032602,2]
[377461485,1754416299842,-727.87,0.00032602,2]
[377461486,1754416299851,-560.35,0.00032602,2]
[377461487,1754416299862,-1127.9,0.00032602,2]
[377461488,1754416299871,-460.0,0.00032602,2]
[377461489,1754416299881,-1550.17,0.00032602,2]
[377461490,1754416299890,-460.0,0.00032602,2]
[377461491,1754416299899,-569.87,0.00032602,2]
[377461492,1754416299908,-2106.63,0.00032602,2]
[377461493,1754416299917,-714.24,0.00032602,2]
[377461494,1754416299927,-1060.0,0.00032632,2]
[377461495,1754416299935,-679.3,0.00032633,15]
[377461496,1754416299945,-200.0,0.00032749,120]
[377461497,1754416299954,-151.0,0.00032749,7]
[377461498,1754416299963,-400.0,0.00032853,5]
[377461499,1754416299972,-155.950444,0.00032876,7]
[377461500,1754416299981,-151.0,0.00032876,7]
[377461501,1754416299990,-151.0,0.00032876,7]
[377461502,1754416299999,-193.643404,0.00032876,7]
[377461503,1754416300008,-193.643404,0.00032876,7]
[377461504,1754416300017,-857.66,0.00032876,2]
[377461505,1754416300026,-663.23,0.00032876,2]
[377461506,1754416300035,-151.0,0.00032876,7]
[377461507,1754416300044,-658.86,0.00032876,2]
[377461508,1754416300053,-6772.75,0.00032876,2]
[377461509,1754416300063,-1541.2,0.00032876,2]
[377461510,1754416300072,-812.68,0.00032876,2]
[377461511,1754416300081,-740.38,0.00032876,2]
[377461512,1754416300091,-1550.45,0.00032876,2]
[377461513,1754416300100,-532.66,0.00032876,2]
[377461514,1754416300109,-460.0,0.00032876,2]
[377461515,1754416300120,-295.63140681,0.00032876,2]
[377461516,1754416300337,-1683.20859319,0.00032876,2]
[377461517,1754416300347,-1378.33,0.00032876,2]
[377461518,1754416300360,-460.0,0.00032876,2]
[377461519,1754416300370,-613.34,0.00032876,2]
[377461520,1754416300379,-500.0,0.00032876,120]
[377461521,1754416300388,-249.23879329,0.00032876,2]
[377461522,1754416300399,-600.40321773,0.00032876,2]
[377461523,1754416300408,-460.0,0.00032876,2]
[377461524,1754416300419,-1321.58,0.00032876,2]
[377461525,1754416300430,-1103.62,0.00032876,2]
[377461526,1754416300439,-7164.38,0.00032876,2]
[377461527,1754416300448,-460.99,0.00032876,2]
[377461528,1754416300457,-407.26373,0.00032876,7]
[377461529,1754416300467,-327.72928375,0.00032876,2]
[377461530,1754416300477,-407.263739,0.00032876,7]
[377461531,1754416300488,-91405.03,0.00032876,2]
[377461532,1754416300498,-151.0,0.00032876,7]
[377461533,1754416300507,-1342.06,0.00032876,2]
[377461534,1754416300516,-502.21,0.00032876,2]
[377461535,1754416300526,-368.10507367,0.00032876,2]
[377461536,1754416300535,-151.0,0.00032876,7]
[377461537,1754416300545,-1250.59,0.00032876,2]
[377461538,1754416300555,-1881.28,0.00032876,2]
[377461539,1754416300566,-1138.15,0.00032876,2]
[377461540,1754416300575,-824.53,0.00032876,2]
[377461541,1754416300585,-3340.06,0.00032876,2]
[377461542,1754416300594,-494.61,0.00032876,2]
[377461543,1754416300604,-567.26,0.00032876,2]
[377461544,1754416300614,-460.0,0.00032876,2]
[377461545,1754416300624,-2164.48,0.00032876,2]
[377461546,1754416300633,-1086.69,0.00032876,2]
[377461547,1754416300643,-1437.23,0.00032876,2]
[377461548,1754416300653,-1308.5,0.00032876,2]
[377461549,1754416300662,-1242.29,0.00032876,2]
[377461550,1754416300670,-738.23,0.00032876,2]
[377461551,1754416300680,-1709.46,0.00032876,2]
[377461552,1754416300690,-6104.81,0.00032876,2]
[377461553,1754416300700,-1758.45,0.00032876,2]
[377461554,1754416300711,-902.91,0.00032876,2]
[377461555,1754416300720,-710.17,0.00032876,2]
[377461556,1754416300729,-1606.27,0.00032876,2]
[377461557,1754416300738,-819.41,0.00032876,2]
[377461558,1754416300748,-1844.87,0.00032876,2]
[377461559,1754416300758,-881.55,0.00032876,2]
[377461560,1754416300767,-558.16,0.00032876,2]
[377461561,1754416300777,-518.54,0.00032876,2]
[377461562,1754416300786,-1561.24,0.00032876,2]
[377461563,1754416300796,-3008.19,0.00032876,2]
[377461564,1754416300805,-844.75,0.00032876,2]
[377461565,1754416300814,-1209.84,0.00032876,2]
[377461566,1754416300824,-1526.12,0.00032876,2]
[377461567,1754416300833,-674.37,0.00032876,2]
[377461568,1754416300843,-734.51,0.00032876,2]
[377461569,1754416300853,-844.14,0.00032876,2]
[377461570,1754416300862,-1000.34,0.00032876,2]
[377461571,1754416300871,-4747.5,0.00032876,120]
[377461572,1754416300881,-2193.9,0.00032876,2]
[377461573,1754416300890,-460.0,0.00032876,2]
[377461574,1754416300899,-519.7,0.00032876,2]
[377461575,1754416300909,-748.97,0.00032876,2]
[377461576,1754416300920,-3138.65,0.00032876,2]
[377461577,1754416300930,-489.33,0.00032876,2]
[377461578,1754416300939,-460.0,0.00032876,2]
[377461579,1754416300950,-3180.74,0.00032876,2]
[377461580,1754416300962,-1930.76,0.00032876,2]
[377461581,1754416300972,-460.0,0.00032876,2]
[377461582,1754416300981,-568.27527087,0.00032876,2]
[377461583,1754416300990,-2230.2,0.00032876,2]
[377461584,1754416301001,-727.87,0.00032876,2]
[377461585,1754416301011,-1127.9,0.00032876,2]
[377461586,1754416301021,-560.35,0.00032876,2]
[377461587,1754416301031,-460.0,0.00032876,2]
[377461588,1754416301042,-1550.17,0.00032876,2]
[377461589,1754416301051,-460.0,0.00032876,2]
[377461590,1754416301061,-569.87,0.00032876,2]
[377461591,1754416301071,-2106.63,0.00032876,2]
[377461592,1754416301081,-714.24,0.00032876,2]
[377461593,1754416301091,-500.0,0.00032877,5]
[377461594,1754416301100,-53789.89,0.000329,14]
[377461595,1754416301111,-4244.27,0.000329,7]
[377461596,1754416301120,-1653.99,0.000329,7]
[377461597,1754416301129,-182.266945,0.000329,14]
[377461598,1754416301139,-151.0,0.000329,14]
[377461599,1754416301148,-408.0,0.00032901,2]
[377461600,1754416301158,-408.0,0.00032901,2]
[377461601,1754416301168,-971.0,0.00032901,2]
[377461602,1754416301178,-2148.0,0.00032901,2]
[377461603,1754416301187,-636.0,0.00032901,2]
[377461604,1754416301199,-202.67740798,0.00033,21]
[377461605,1754416301210,-1000.0,0.00033,120]
[377461606,1754416301221,-151.0,0.0003301,14]
[377461607,1754416301232,-24743.7238047,0.0003301,2]
[377461608,1754416301242,-800.0,0.00033127,5]
[377461609,1754416301252,-151.0,0.0003315,14]
[377461610,1754416301261,-241.241844,0.0003315,14]
[377461611,1754416301270,-857.66,0.0003315,2]
[377461612,1754416301280,-663.23,0.0003315,2]
[377461613,1754416301291,-658.86,0.0003315,2]
[377461614,1754416301302,-6772.75,0.0003315,2]
[377461615,1754416301312,-1541.2,0.0003315,2]
[377461616,1754416301323,-812.68,0.0003315,2]
[377461617,1754416301333,-740.38,0.0003315,2]
[377461618,1754416301344,-1550.45,0.0003315,2]
[377461619,1754416301356,-532.66,0.0003315,2]
[377461620,1754416301366,-240.50173134,0.0003315,2]
[377461621,1754416301376,-1978.84,0.0003315,2]
[377461622,1754416301385,-1378.33,0.0003315,2]
[377461623,1754416301395,-460.0,0.0003315,2]
[377461624,1754416301406,-613.34,0.0003315,2]
[377461625,1754416301416,-297.89146792,0.0003315,2]
[377461626,1754416301426,-1321.58,0.0003315,2]
[377461627,1754416301438,-222.31398,0.0003315,14]
[377461628,1754416301450,-222.31398,0.0003315,14]
[377461629,1754416301459,-1103.62,0.0003315,2]
[377461630,1754416301469,-7164.38,0.0003315,2]
[377461631,1754416301479,-460.99,0.0003315,2]
[377461632,1754416301488,-91405.03,0.0003315,2]
[377461633,1754416301498,-1342.06,0.0003315,2]
[377461634,1754416301507,-502.21,0.0003315,2]
[377461635,1754416301517,-1250.59,0.0003315,2]
[377461636,1754416301527,-1881.28,0.0003315,2]
[377461637,1754416301536,-1138.15,0.0003315,2]
[377461638,1754416301546,-824.53,0.0003315,2]
[377461639,1754416301555,-3340.06,0.0003315,2]
[377461640,1754416301567,-494.61,0.0003315,2]
[377461641,1754416301577,-567.26,0.0003315,2]
[377461642,1754416301587,-460.0,0.0003315,2]
[377461643,1754416301597,-2164.48,0.0003315,2]
[377461644,1754416301607,-1086.69,0.0003315,2]
[377461645,1754416301618,-1437.23,0.0003315,2]
[377461646,1754416301627,-1308.5,0.0003315,2]
[377461647,1754416301636,-1242.29,0.0003315,2]
[377461648,1754416301646,-738.23,0.0003315,2]
[377461649,1754416301655,-1709.46,0.0003315,2]
[377461650,1754416301665,-6104.81,0.0003315,2]
[377461651,1754416301675,-1758.45,0.0003315,2]
[377461652,1754416301684,-902.91,0.0003315,2]
[377461653,1754416301694,-710.17,0.0003315,2]
[377461654,1754416301704,-1606.27,0.0003315,2]
[377461655,1754416301713,-819.41,0.0003315,2]
[377461656,1754416301723,-1844.87,0.0003315,2]
[377461657,1754416301732,-881.55,0.0003315,2]
[377461658,1754416301742,-558.16,0.0003315,2]
[377461659,1754416301897,-518.54,0.0003315,2]
[377461660,1754416301907,-1561.24,0.0003315,2]
[377461661,1754416301917,-3008.19,0.0003315,2]
[377461662,1754416301926,-844.75,0.0003315,2]
[377461663,1754416301936,-1209.84,0.0003315,2]
[377461664,1754416301945,-1526.12,0.0003315,2]
[377461665,1754416301955,-674.37,0.0003315,2]
[377461666,1754416301965,-734.51,0.0003315,2]
[377461667,1754416301974,-844.14,0.0003315,2]
[377461668,1754416301983,-1000.34,0.0003315,2]
[377461669,1754416301993,-2193.9,0.0003315,2]
[377461670,1754416302003,-453.48631578,0.0003315,2]
[377461671,1754416302012,-519.7,0.0003315,2]
[377461672,1754416302021,-748.97,0.0003315,2]
[377461673,1754416302030,-3138.65,0.0003315,2]
[377461674,1754416302040,-489.33,0.0003315,2]
[377461675,1754416302049,-460.0,0.0003315,2]
[377461676,1754416302058,-3180.74,0.0003315,2]
[377461677,1754416302067,-1930.76,0.0003315,2]
[377461678,1754416302077,-166.9,0.0003315,2]
[377461679,1754416302086,-2230.2,0.0003315,2]
[377461680,1754416302095,-727.87,0.0003315,2]
[377461681,1754416302105,-1127.9,0.0003315,2]
[377461682,1754416302115,-560.35,0.0003315,2]
[377461683,1754416302125,-460.0,0.0003315,2]
[377461684,1754416302134,-1550.17,0.0003315,2]
[377461685,1754416302143,-460.0,0.0003315,2]
[377461686,1754416302153,-569.87,0.0003315,2]
[377461687,1754416302162,-2106.63,0.0003315,2]
[377461688,1754416302171,-405.653897,0.00033165,2]
[377461689,1754416302180,-1160.0,0.00033179,2]
[377461690,1754416302189,-418.0,0.00033226,30]
[377461691,1754416302198,-823.0,0.00033242,2]
[377461692,1754416302207,-1021.2704496,0.00033247,30]
[377461693,1754416302216,-153.0,0.00033247,30]
[377461694,1754416302226,-153.0,0.00033247,30]
[377461695,1754416302235,-153.0,0.00033247,30]
[377461696,1754416302244,-2200.0,0.00033264,7]
[377461697,1754416302253,-200.0,0.00033286,120]
[377461698,1754416302262,-2301.40475005,0.00033297,20]
[377461699,1754416302271,-267.498216,0.00033315,2]
[377461700,1754416302281,-4000.0,0.00033333,4]
[377461701,1754416302290,-1200.0,0.00033401,5]
[377461702,1754416302299,-857.66,0.00033424,2]
[377461703,1754416302308,-663.23,0.00033424,2]
[377461704,1754416302317,-658.86,0.00033424,2]
[377461705,1754416302326,-6772.75,0.00033424,2]
[377461706,1754416302335,-1541.2,0.00033424,2]
[377461707,1754416302344,-155.502723,0.00033424,14]
[377461708,1754416302355,-812.68,0.00033424,2]
[377461709,1754416302365,-740.38,0.00033424,2]
[377461710,1754416302374,-1550.45,0.00033424,2]
[377461711,1754416302383,-151.0,0.00033424,14]
[377461712,1754416302393,-532.66,0.00033424,2]
[377461713,1754416302403,-151.0,0.00033424,14]
[377461714,1754416302412,-1978.84,0.00033424,2]
[377461715,1754416302421,-1378.33,0.00033424,2]
[377461716,1754416302432,-151.0,0.00033424,14]
[377461717,1754416302442,-196.226432,0.00033424,14]
[377461718,1754416302451,-188.66273,0.00033424,14]
[377461719,1754416302460,-460.0,0.00033424,2]
[377461720,1754416302470,-613.34,0.00033424,2]
[377461721,1754416302479,-1321.58,0.00033424,2]
[377461722,1754416302488,-1103.62,0.00033424,2]
[377461723,1754416302497,-7164.38,0.00033424,2]
[377461724,1754416302506,-460.99,0.00033424,2]
[377461725,1754416302516,-91405.03,0.00033424,2]
[377461726,1754416302526,-1342.06,0.00033424,2]
[377461727,1754416302535,-502.21,0.00033424,2]
[377461728,1754416302545,-1250.59,0.00033424,2]
[377461729,1754416302555,-1881.28,0.00033424,2]
[377461730,1754416302567,-1138.15,0.00033424,2]
[377461731,1754416302578,-824.53,0.00033424,2]
[377461732,1754416302592,-3340.06,0.00033424,2]
[377461733,1754416302605,-494.61,0.00033424,2]
[377461734,1754416302615,-567.26,0.00033424,2]
[377461735,1754416302630,-407.19740476,0.00033424,2]
[377461736,1754416302647,-2164.48,0.00033424,2]
[377461737,1754416302658,-1086.69,0.00033424,2]
[377461738,1754416302667,-1437.23,0.00033424,2]
[377461739,1754416302677,-1308.5,0.00033424,2]
[377461740,1754416302687,-1242.29,0.00033424,2]
[377461741,1754416302697,-738.23,0.00033424,2]
[377461742,1754416302707,-1709.46,0.00033424,2]
[377461743,1754416302716,-6104.81,0.00033424,2]
[377461744,1754416302726,-902.91,0.00033424,2]
[377461745,1754416302735,-1758.45,0.00033424,2]
[377461746,1754416302745,-710.17,0.00033424,2]
[377461747,1754416302755,-1606.27,0.00033424,2]
[377461748,1754416302764,-819.41,0.00033424,2]
[377461749,1754416302776,-1844.87,0.00033424,2]
[377461750,1754416302786,-881.55,0.00033424,2]
[377461751,1754416302795,-558.16,0.00033424,2]
[377461752,1754416302804,-518.54,0.00033424,2]
[377461753,1754416302813,-1561.24,0.00033424,2]
[377461754,1754416302823,-3008.19,0.00033424,2]
[377461755,1754416302832,-844.75,0.00033424,2]
[377461756,1754416302841,-1209.84,0.00033424,2]
[377461757,1754416302850,-1526.12,0.00033424,2]
[377461758,1754416302859,-674.37,0.00033424,2]
[377461759,1754416302868,-734.51,0.00033424,2]
[377461760,1754416302878,-844.14,0.00033424,2]
[377461761,1754416302887,-1000.34,0.00033424,2]
[377461762,1754416302896,-2193.9,0.00033424,2]
[377461763,1754416302906,-519.7,0.00033424,2]
[377461764,1754416302917,-748.97,0.00033424,2]
[377461765,1754416302928,-3138.65,0.00033424,2]
[377461766,1754416302939,-489.33,0.00033424,2]
[377461767,1754416302948,-507.15,0.00033424,2]
[377461768,1754416302957,-3180.74,0.00033424,2]
[377461769,1754416302966,-1930.76,0.00033424,2]
[377461770,1754416302976,-2230.2,0.00033424,2]
[377461771,1754416302986,-727.87,0.00033424,2]
[377461772,1754416302995,-1127.9,0.00033424,2]
[377461773,1754416303003,-560.35,0.00033424,2]
[377461774,1754416303013,-460.0,0.00033424,2]
[377461775,1754416303022,-1550.17,0.00033424,2]
[377461776,1754416303031,-460.0,0.00033424,2]
[377461777,1754416303040,-569.87,0.00033424,2]
[377461778,1754416303049,-2106.63,0.00033424,2]
[377461779,1754416303058,-679.3,0.00033451,15]
[377461780,1754416303067,-200.0,0.000336,120]
[377461781,1754416303076,-225.41743,0.000336,120]
[377461782,1754416303086,-200.0,0.000336,120]
[377461783,1754416303095,-166.98937745,0.000336,16]
[377461784,1754416303104,-166.98937745,0.000336,16]
[377461785,1754416303113,-500.0,0.00033611,5]
[377461786,1754416303122,-1600.0,0.00033675,5]
[377461787,1754416303131,-2514.0,0.00033688,3]
[377461788,1754416303141,-857.77495901,0.00033698,2]
[377461789,1754416303150,-663.40220013,0.00033698,2]
[377461790,1754416303160,-658.95630402,0.00033698,2]
[377461791,1754416303169,-154.817736,0.00033698,14]
[377461792,1754416303179,-6772.78016736,0.00033698,2]
[377461793,1754416303190,-1541.38080023,0.00033698,2]
[377461794,1754416303199,-812.81449046,0.00033698,2]
[377461795,1754416303208,-740.60514132,0.00033698,2]
[377461796,1754416303219,-1550.49472646,0.00033698,2]
[377461797,1754416303228,-532.71936622,0.00033698,2]
[377461798,1754416303237,-1978.85981265,0.00033698,2]
[377461799,1754416303246,-1378.40796926,0.00033698,2]
[377461800,1754416303256,-306.12914648,0.00033698,2]
[377461801,1754416303267,-613.48042899,0.00033698,2]
[377461802,1754416303277,-1321.62897087,0.00033698,2]
[377461803,1754416303286,-1103.67537422,0.00033698,2]
[377461804,1754416303295,-7164.58182755,0.00033698,2]
[377461805,1754416303306,-461.15708318,0.00033698,2]
[377461806,1754416303315,-91405.24998785,0.00033698,2]
[377461807,1754416303324,-1342.08,0.00033698,2]
[377461808,1754416303333,-502.27827835,0.00033698,2]
[377461809,1754416303342,-1250.78700729,0.00033698,2]
[377461810,1754416303352,-1881.40703733,0.00033698,2]
[377461811,1754416303364,-1138.17836496,0.00033698,2]
[377461812,1754416303375,-824.58705927,0.00033698,2]
[377461813,1754416303385,-3340.20944831,0.00033698,2]
[377461814,1754416303395,-494.78329754,0.00033698,2]
[377461815,1754416303404,-567.38068037,0.00033698,2]
[377461816,1754416303413,-2164.64412342,0.00033698,2]
[377461817,1754416303423,-1086.73,0.00033698,2]
[377461818,1754416303434,-1437.31896313,0.00033698,2]
[377461819,1754416303444,-1308.52854648,0.00033698,2]
[377461820,1754416303454,-1242.460458,0.00033698,2]
[377461821,1754416303463,-738.23500243,0.00033698,2]
[377461822,1754416303474,-1709.5499185,0.00033698,2]
[377461823,1754416303483,-6104.81709726,0.00033698,2]
[377461824,1754416303492,-902.92290859,0.00033698,2]
[377461825,1754416303502,-710.38506807,0.00033698,2]
[377461826,1754416303512,-1758.59724582,0.00033698,2]
[377461827,1754416303523,-1606.43367988,0.00033698,2]
[377461828,1754416303533,-819.61,0.00033698,2]
[377461829,1754416303542,-1844.94721173,0.00033698,2]
[377461830,1754416303552,-881.58914867,0.00033698,2]
[377461831,1754416303562,-558.29310491,0.00033698,2]
[377461832,1754416303572,-518.6263172,0.00033698,2]
[377461833,1754416303583,-1561.47219576,0.00033698,2]
[377461834,1754416303592,-3008.20675839,0.00033698,2]
[377461835,1754416303601,-844.91478979,0.00033698,2]
[377461836,1754416303610,-1209.96501109,0.00033698,2]
[377461837,1754416303621,-1526.33975813,0.00033698,2]
[377461838,1754416303631,-674.54204432,0.00033698,2]
[377461839,1754416303640,-844.33004992,0.00033698,2]
[377461840,1754416303649,-1000.50431988,0.00033698,2]
[377461841,1754416303660,-734.54,0.00033698,2]
[377461842,1754416303670,-4747.5,0.00033698,120]
[377461843,1754416303679,-2193.92512807,0.00033698,2]
[377461844,1754416303690,-519.90373075,0.00033698,2]
[377461845,1754416303700,-749.07,0.00033698,2]
[377461846,1754416303709,-3138.78510058,0.00033698,2]
[377461847,1754416303718,-489.55233829,0.00033698,2]
[377461848,1754416303727,-3180.88125811,0.00033698,2]
[377461849,1754416303736,-1930.78746107,0.00033698,2]
[377461850,1754416303745,-2230.22547486,0.00033698,2]
[377461851,1754416303754,-727.87,0.00033698,2]
[377461852,1754416303762,-1128.05126606,0.00033698,2]
[377461853,1754416303772,-560.42132993,0.00033698,2]
[377461854,1754416303781,-1550.20578998,0.00033698,2]
[377461855,1754416303790,-151.91217801,0.00033698,2]
[377461856,1754416303799,-347.23596729,0.00033698,2]
[377461857,1754416303810,-569.95355586,0.00033698,2]
[377461858,1754416303818,-2106.85946008,0.00033698,2]
[377461859,1754416303827,-1260.0,0.00033727,2]
[377461860,1754416303836,-1000.0,0.000338,50]
[377461861,1754416303845,-4244.27,0.000338,7]
[377461862,1754416303854,-1653.99,0.000338,7]
[377461863,1754416303862,-200.0,0.00033819,120]
[377461864,1754416303873,-138904.87705593,0.000339,7]
[377461865,1754416303882,-151.0,0.000339,14]
[377461866,1754416303890,-193.643404,0.000339,14]
[377461867,1754416303899,-193.643404,0.000339,14]
[377461868,1754416303908,-151.0,0.000339,14]
[377461869,1754416303917,-151.0,0.000339,14]
[377461870,1754416303926,-222.31398,0.000339,14]
[377461871,1754416303935,-222.313989,0.000339,14]
[377461872,1754416303944,-200.0,0.00033922,120]
[377461873,1754416303953,-2000.0,0.00033949,5]
[377461874,1754416303962,-2000.0,0.0003398,2]
[377461875,1754416303971,-300.0,0.00034,120]
[377461876,1754416303979,-250.0,0.00034,60]
[377461877,1754416303988,-300.0,0.00034,120]
[377461878,1754416303997,-160.0,0.00034,120]
[377461879,1754416304006,-160.0,0.00034,120]
[377461880,1754416304015,-231.72586818,0.00034,120]
[377461881,1754416304024,-160.0,0.00034,120]
[377461882,1754416304033,-527.3554621,0.00034,120]
[377461883,1754416304042,-156.531808,0.00034016,7]
[377461884,1754416304051,-267.498216,0.00034016,7]
[377461885,1754416304061,-1986.03736301,0.00034147,2]
[377461886,1754416304070,-2400.0,0.00034223,5]
[377461887,1754416304079,-500.0,0.00034246,120]
[377461888,1754416304088,-679.3,0.00034268,15]
[377461889,1754416304097,-1360.0,0.00034275,2]
[377461890,1754416304107,-158.687297,0.00034288,30]
[377461891,1754416304116,-201.050211,0.00034288,30]
[377461892,1754416304126,-25659.24158547,0.00034379,2]
[377461893,1754416304135,-267.498216,0.00034399,30]
[377461894,1754416304144,-404.98820011,0.00034497,5]
[377461895,1754416304154,-4747.5,0.0003452,120]
[377461896,1754416304170,-799.1509536,0.00034564,30]
[377461897,1754416304179,-855.3500093,0.00034576,30]
[377461898,1754416304187,-2301.40475005,0.00034603,23]
[377461899,1754416304196,-200.0,0.0003469,15]
[377461900,1754416304205,-200.0,0.0003469,15]
[377461901,1754416304214,-200.0,0.0003469,15]
[377461902,1754416304223,-379.0,0.0003469,15]
[377461903,1754416304233,-1000.0,0.000348,60]
[377461904,1754416304241,-4244.27,0.000348,7]
[377461905,1754416304251,-1653.99,0.000348,7]
[377461906,1754416304260,-1320.46807936,0.00034823,2]
[377461907,1754416304269,-292.9155566,0.00034851,30]
[377461908,1754416304278,-578.9513623,0.00034851,30]
[377461909,1754416304287,-292.9155566,0.00034851,30]
[377461910,1754416304296,-292.9155566,0.00034851,30]
[377461911,1754416304304,-292.9155566,0.00034851,30]
[377461912,1754416304313,-2200.0,0.00034908,7]
[377461913,1754416304322,-10617.41024024,0.00035,2]
[377461914,1754416304332,-666.88517275,0.00035,120]
[377461915,1754416304341,-211.0857049,0.00035,30]
[377461916,1754416304353,-200.0,0.00035,14]
[377461917,1754416304363,-651.22009528,0.00035,2]
[377461918,1754416304373,-534.53008482,0.00035,30]
[377461919,1754416304384,-3057.8931863,0.00035,120]
[377461920,1754416304394,-500.0,0.00035,120]
[377461921,1754416304403,-679.3,0.00035086,15]
[377461922,1754416304413,-4747.5,0.00035342,120]
[377461923,1754416304422,-600.0,0.00035362,2]
[377461924,1754416304433,-500.0,0.0003538,5]